bitfinex/quotes_BTCUSD_20250505
["timestamp","ask_amount","ask_price","bid_price","bid_amount"]
[1746447905408,0.22216535,94525.0,94523.0,0.03161967]
[1746447905596,0.21158647,94524.0,94523.0,0.03161967]
[1746447905762,0.21158647,94524.0,94523.0,0.03163033]
[1746447905960,0.25393242,94524.0,94523.0,0.03163033]
[1746447906194,0.04234595,94524.0,94523.0,0.03163033]
[1746447906522,0.21158611,94525.0,94523.0,0.03363033]
[1746447906744,0.16894126,94525.0,94523.0,0.004]
[1746447907171,0.22216299,94526.0,94523.0,0.004]
[1746447907395,0.22216299,94526.0,94523.0,0.02]
[1746447907615,0.22216299,94526.0,94524.0,0.02963394]
[1746447907816,0.26425894,94526.0,94524.0,0.02963394]
[1746447908736,0.05267504,94526.0,94524.0,0.02963394]
[1746447909148,0.21158423,94525.0,94521.0,0.02963394]
[1746447909400,0.21158423,94525.0,94524.0,0.004]
[1746447909590,0.21158423,94525.0,94524.0,0.03363713]
[1746447909801,0.17841626,94525.0,94524.0,0.03363713]
[1746447910011,0.26425744,94526.0,94524.0,0.004]
[1746447910217,0.26425744,94526.0,94520.0,0.33137088]
[1746447910424,0.26425744,94526.0,94521.0,0.02964079]
[1746447911246,0.04209595,94526.0,94521.0,0.03164079]
[1746447911540,0.22216079,94527.0,94522.0,0.02964079]
[1746447911714,0.26449076,94527.0,94522.0,0.02964079]
[1746447911936,0.26449076,94527.0,94523.0,0.02964079]
[1746447912149,0.21158199,94526.0,94522.0,0.02964079]
[1746447912391,0.04232997,94527.0,94523.0,0.02964079]
[1746447912608,0.04232997,94527.0,94522.0,0.02964079]
[1746447912810,0.21158047,94527.0,94523.0,0.02964079]
[1746447913026,0.25438024,94527.0,94523.0,0.02964079]
[1746447913269,0.22215659,94528.0,94523.0,0.02964079]
[1746447913480,0.22214536,94533.0,94523.0,0.02964079]
[1746447913693,0.34,94539.0,94523.0,0.02964079]
[1746447913915,0.01057764,94539.0,94524.0,0.01711564]
[1746447914124,0.34,94535.0,94525.0,0.02964079]
[1746447915331,0.341,94535.0,94525.0,0.02964079]
[1746447915535,0.001,94535.0,94525.0,0.02964079]
[1746447915740,0.341,94535.0,94525.0,0.02964079]
[1746447915941,0.342,94535.0,94525.0,0.02964079]
[1746447916763,0.55356225,94535.0,94525.0,0.02964079]
[1746447917202,0.35257809,94535.0,94525.0,0.02964079]
[1746447917417,0.56414114,94535.0,94526.0,0.02264079]
[1746447917602,0.56314114,94535.0,94526.0,0.02264079]
[1746447917902,0.001,94535.0,94527.0,0.02264079]
[1746447918199,0.56213675,94537.0,94528.0,0.02264079]
[1746447918414,0.56213675,94537.0,94525.0,0.02264079]
[1746447918633,0.34,94535.0,94526.0,0.02264079]
[1746447918846,0.34,94535.0,94527.0,0.02264079]
[1746447919050,0.55156316,94535.0,94527.0,0.02264079]
[1746447919263,0.35057809,94535.0,94527.0,0.02264079]
[1746447919474,0.21156433,94534.0,94527.0,0.02264079]
[1746447919890,0.21156634,94533.0,94527.0,0.02264079]
[1746447920013,0.22214253,94534.0,94527.0,0.02264079]
[1746447920916,0.21156633,94533.0,94527.0,0.02264079]
[1746447921472,0.22214808,94532.0,94529.0,0.0165]
[1746447921679,0.22214808,94532.0,94530.0,0.02264079]
[1746447921923,0.01057842,94532.0,94530.0,0.02264079]
[1746447923358,0.22214477,94533.0,94530.0,0.02264079]
[1746447924168,0.22214477,94533.0,94531.0,0.04761577]
[1746447924328,0.22214477,94533.0,94532.0,0.02264079]
[1746447924740,0.17950367,94533.0,94531.0,0.04061577]
[1746447925601,0.19008198,94533.0,94531.0,0.04061577]
[1746447926062,0.21156856,94532.0,94531.0,0.04061577]
[1746447926265,0.19008198,94533.0,94531.0,0.07025146]
[1746447926564,0.19008198,94533.0,94531.0,0.04061577]
[1746447926761,0.0105782,94534.0,94531.0,0.04061577]
[1746447926963,0.56214118,94535.0,94532.0,0.033]
[1746447927284,0.55156505,94534.0,94533.0,0.0165]
[1746447927529,0.55156505,94534.0,94533.0,0.0362571]
[1746447927787,0.55156409,94534.0,94533.0,0.0362571]
[1746447928542,0.55156409,94534.0,94533.0,0.0197571]
[1746447931310,0.21156409,94534.0,94533.0,0.0197571]
[1746447932431,0.21156409,94534.0,94533.0,0.0127571]
[1746447933083,0.21157257,94531.0,94527.0,0.0165]
[1746447933370,0.21157304,94530.0,94529.0,0.0154]
[1746447933540,0.21157304,94530.0,94521.0,0.00211564]
[1746447933541,0.01057887,94528.0,94523.0,0.0154]
[1746447933745,0.22215169,94530.0,94524.0,0.02963932]
[1746447934147,0.21157573,94529.0,94525.0,0.02963932]
[1746447934338,0.21157573,94529.0,94525.0,0.04543932]
[1746447934544,0.22215368,94531.0,94523.0,0.0314]
[1746447934763,0.22215368,94531.0,94530.0,0.06472478]
[1746447936189,0.22215368,94531.0,94530.0,0.06672478]
[1746447937543,0.22215368,94531.0,94530.0,0.002]
[1746447939685,0.21157478,94530.0,94527.0,0.05972478]
[1746447939911,0.21157478,94530.0,94528.0,0.02964288]
[1746447941570,0.21157528,94529.0,94528.0,0.03064288]
[1746447942584,0.21157528,94529.0,94528.0,0.03164288]
[1746447942814,0.21157528,94529.0,94528.0,0.03064288]
[1746447944242,0.21157528,94529.0,94528.0,0.02964288]
[1746447944537,0.21157528,94529.0,94528.0,0.07729012]
[1746447944743,0.21157528,94529.0,94528.0,0.07829012]
[1746447945229,0.21157478,94530.0,94528.0,0.07829012]
[1746447945445,0.21157528,94529.0,94528.0,0.07829012]
[1746447945659,0.21157528,94529.0,94528.0,0.04864724]
[1746447945852,0.21157528,94529.0,94528.0,0.07829667]
[1746447946167,0.21157528,94529.0,94528.0,0.07729667]
[1746447946650,0.01057842,94532.0,94528.0,0.07029667]
[1746447946914,0.21157304,94530.0,94529.0,0.02964943]
[1746447948649,0.21157304,94530.0,94529.0,0.03064943]
[1746447951917,0.17840663,94530.0,94529.0,0.03064943]
[1746447953710,0.17840663,94530.0,94529.0,0.02364943]
[1746447954574,0.21157163,94531.0,94529.0,0.02364943]
[1746447954770,0.21157163,94531.0,94529.0,0.001]
[1746447955128,0.21157163,94531.0,94530.0,0.02966215]
[1746447955318,0.22214732,94532.0,94530.0,0.02966215]
[1746447955899,0.22214732,94532.0,94524.0,0.02966215]
[1746447956104,0.01057842,94532.0,94525.0,0.02966215]
[1746447956303,0.01057842,94532.0,94524.0,0.02966215]
[1746447956510,0.22214738,94532.0,94525.0,0.02966215]
[1746447956728,0.22214738,94532.0,94524.0,0.02966215]
[1746447956984,0.22214738,94532.0,94525.0,0.02966215]
[1746447957244,0.22214738,94532.0,94526.0,0.02966215]
[1746447957394,0.22214738,94532.0,94524.0,0.02966215]
[1746447959562,0.01057842,94532.0,94524.0,0.02966215]
[1746447959691,0.21157066,94533.0,94524.0,0.02966215]
[1746447960256,0.0105782,94534.0,94524.0,0.02966215]
[1746447960398,0.22214435,94534.0,94524.0,0.02966215]
[1746447960823,0.21156717,94533.0,94524.0,0.02266215]
[1746447961054,0.21156717,94533.0,94525.0,0.02266215]
[1746447961256,0.22214435,94534.0,94524.0,0.02266215]
[1746447961464,0.22214435,94534.0,94525.0,0.02266215]
[1746447961666,0.3825982,94539.0,94526.0,0.00211563]
[1746447961928,0.38267702,94569.0,94533.0,0.0159]
[1746447961929,8.196e-05,94538.0,94533.0,0.0159]
[1746447962168,8.196e-05,94538.0,94535.0,0.0323]
[1746447962365,8.196e-05,94538.0,94536.0,0.02477744]
[1746447962523,8.196e-05,94538.0,94537.0,0.0323]
[1746447962734,8.196e-05,94538.0,94537.0,0.05496215]
[1746447962936,0.00108196,94538.0,94537.0,0.05496215]
[1746447963543,0.00108196,94538.0,94537.0,0.069503]
[1746447963848,0.00108196,94538.0,94537.0,0.40087388]
[1746447964052,0.00108196,94538.0,94537.0,0.45377388]
[1746447964260,0.03719274,94560.0,94539.0,0.01454085]
[1746447964461,0.03719274,94560.0,94547.0,0.01454085]
[1746447964669,0.03719274,94560.0,94549.0,0.02994085]
[1746447964862,0.03719274,94560.0,94551.0,0.01454085]
[1746447965063,0.03719274,94560.0,94553.0,0.01454085]
[1746447965274,0.0050524,94568.0,94555.0,0.01454085]
[1746447965538,0.0050524,94568.0,94557.0,0.01454085]
[1746447965700,0.0050524,94568.0,94558.0,0.02477675]
[1746447965904,0.002,94560.0,94559.0,0.33128892]
[1746447966077,0.21350592,94560.0,94559.0,0.35395107]
[1746447966275,0.002,94560.0,94559.0,0.33128892]
[1746447966902,0.21350592,94560.0,94559.0,0.33128892]
[1746447967389,0.21150493,94561.0,94555.0,0.002]
[1746447967390,0.21151486,94556.0,94555.0,0.002]
[1746447967954,0.21152645,94551.0,94543.0,0.32840412]
[1746447968135,0.21152645,94551.0,94544.0,0.02955906]
[1746447968344,0.21152645,94551.0,94543.0,0.32840412]
[1746447968543,0.22210275,94551.0,94543.0,0.32840412]
[1746447968947,0.343,94569.0,94546.0,0.01454085]
[1746447969181,0.21150833,94559.0,94548.0,0.01454085]
[1746447969486,0.22208138,94560.0,94559.0,0.04764495]
[1746447971912,0.22408138,94560.0,94559.0,0.04764495]
[1746447972113,0.22209872,94553.0,94550.0,0.04975997]
[1746447972310,0.22209872,94553.0,94550.0,0.04764495]
[1746447972634,0.2220953,94554.0,94550.0,0.04764495]
[1746447972827,0.002,94560.0,94553.0,0.01454085]
[1746447973044,0.002,94560.0,94555.0,0.01454085]
[1746447973361,0.002,94569.0,94558.0,0.0165]
[1746447973565,0.01257428,94569.0,94559.0,0.00211478]
[1746447973843,0.002,94569.0,94559.0,0.00211478]
[1746447974480,0.002,94569.0,94560.0,0.01454085]
[1746447974683,0.0070524,94568.0,94562.0,0.01454085]
[1746447974973,0.0070524,94568.0,94560.0,0.01454085]
[1746447975121,0.0050524,94568.0,94561.0,0.329461]
[1746447975322,0.0070524,94568.0,94561.0,0.32840412]
[1746447975589,0.0070524,94568.0,94562.0,0.00105691]
[1746447975752,0.0070524,94568.0,94561.0,0.32840412]
[1746447976494,0.0100524,94568.0,94561.0,0.32840412]
[1746447976695,0.0080524,94568.0,94561.0,0.32840412]
[1746447976989,0.0100524,94568.0,94562.0,0.01454085]
[1746447977396,0.0080524,94568.0,94562.0,0.01454085]
[1746447977933,0.0100524,94568.0,94562.0,0.01454085]
[1746447978166,0.0080524,94568.0,94562.0,0.01454085]
[1746447978547,0.0070524,94568.0,94562.0,0.01454085]
[1746447978741,0.0070524,94568.0,94562.0,0.0621858]
[1746447978916,0.0090524,94568.0,94562.0,0.0621858]
[1746447980414,0.01057451,94567.0,94562.0,0.0621858]
[1746447980697,0.01057451,94567.0,94564.0,0.0165]
[1746447981125,0.01057451,94567.0,94565.0,0.32840412]
[1746447981319,0.0176268,94568.0,94565.0,0.32840412]
[1746447981447,0.002,94567.0,94565.0,0.32840412]
[1746447981912,0.22711667,94568.0,94565.0,0.32840412]
[1746447982068,0.22711667,94568.0,94565.0,0.32140412]
[1746447982471,0.21349184,94567.0,94565.0,0.32140412]
[1746447982727,0.21149184,94567.0,94565.0,0.32140412]
[1746447983008,0.16887006,94567.0,94565.0,0.32140412]
[1746447983408,0.2114925,94566.0,94565.0,0.32140412]
[1746447984615,0.2134925,94566.0,94565.0,0.32140412]
[1746447985218,0.2154925,94566.0,94565.0,0.32140412]
[1746447987601,0.004,94566.0,94565.0,0.36864497]
[1746447988083,0.004,94566.0,94565.0,0.41598018]
[1746447988487,0.002,94566.0,94565.0,0.41598018]
[1746447988838,0.003,94566.0,94565.0,0.41598018]
[1746447989039,0.003,94566.0,94565.0,0.40898018]
[1746447989616,0.0050524,94568.0,94567.0,0.01454085]
[1746447989820,0.0050524,94568.0,94567.0,0.04574085]
[1746447989986,0.0050524,94568.0,94567.0,0.04474085]
[1746447992236,0.0050524,94568.0,94567.0,0.0742161]
[1746447992891,0.0050524,94568.0,94567.0,0.44142022]
[1746447993610,0.0050524,94568.0,94567.0,0.48875543]
[1746447994008,0.002,94589.0,94570.0,0.01454085]
[1746447994263,0.22201794,94587.0,94576.0,0.01454085]
[1746447994467,0.2114499,94586.0,94577.0,0.04447525]
[1746447994770,0.2114499,94586.0,94579.0,0.01454085]
[1746447994771,0.01057238,94586.0,94579.0,0.01454085]
[1746447995010,0.01057272,94583.0,94581.0,0.01454085]
[1746447995186,0.2220272,94583.0,94582.0,0.04504085]
[1746447995767,0.2220272,94583.0,94582.0,0.01454085]
[1746447996869,0.21146119,94580.0,94579.0,0.001]
[1746447997351,0.21147908,94572.0,94568.0,0.0152]
[1746447997549,0.21147908,94572.0,94571.0,0.3680385]
[1746447998232,0.16886866,94572.0,94571.0,0.3680385]
[1746447998577,0.16886866,94572.0,94571.0,0.3368385]
[1746447998918,0.16886866,94572.0,94571.0,0.37037935]
[1746447999685,0.16886866,94572.0,94571.0,0.41766518]
[1746447999913,0.16886866,94572.0,94571.0,0.38812433]
[1746448000253,0.16886866,94572.0,94571.0,0.36363755]
[1746448000684,0.16886866,94572.0,94571.0,0.35963755]
[1746448000897,0.20096866,94572.0,94571.0,0.35463755]
[1746448001084,0.20096866,94572.0,94571.0,0.35663755]
[1746448001285,0.16886866,94572.0,94571.0,0.35463755]
[1746448001411,0.16886866,94572.0,94571.0,0.35663755]
[1746448001609,0.16886866,94572.0,94571.0,0.35863755]
[1746448001810,0.19936866,94572.0,94571.0,0.35863755]
[1746448002060,0.19936866,94572.0,94571.0,0.04928583]
[1746448002476,0.19936866,94572.0,94571.0,0.05028583]
[1746448002956,0.19936866,94572.0,94571.0,0.04828583]
[1746448003119,0.19936866,94572.0,94571.0,0.04928583]
[1746448003991,0.19936866,94572.0,94571.0,0.04228583]
[1746448009500,0.16886866,94572.0,94571.0,0.04228583]
[1746448011103,0.16886866,94572.0,94571.0,0.03528583]
[1746448011651,0.19996866,94572.0,94571.0,0.03528583]
[1746448012243,0.16886866,94572.0,94571.0,0.03528583]
[1746448014363,0.12624601,94572.0,94571.0,0.03528583]
[1746448016670,0.09309549,94572.0,94571.0,0.03528583]
[1746448018128,0.09309549,94572.0,94571.0,0.02828583]
[1746448018285,0.09309549,94572.0,94571.0,0.02665763]
[1746448019734,0.12449549,94572.0,94571.0,0.02665763]
[1746448020327,0.09309549,94572.0,94571.0,0.02665763]
[1746448025162,0.09309549,94572.0,94571.0,0.01965763]
[1746448028374,0.09309549,94572.0,94571.0,0.0492132]
[1746448029635,0.05047412,94572.0,94571.0,0.01965763]
[1746448032267,0.05047412,94572.0,94571.0,0.01265763]
[1746448032825,0.05047412,94572.0,94571.0,0.0422441]
[1746448037680,0.21147727,94573.0,94571.0,0.0422441]
[1746448037854,0.21147727,94573.0,94572.0,0.02958647]
[1746448039107,0.21147727,94573.0,94572.0,0.03058647]
[1746448039321,0.21147727,94573.0,94572.0,0.02358647]
[1746448040038,0.21147727,94573.0,94572.0,0.02458647]
[1746448045189,0.16885823,94573.0,94572.0,0.02458647]
[1746448046346,0.16885823,94573.0,94572.0,0.01758647]
[1746448049769,0.16885823,94573.0,94572.0,0.06516888]
[1746448050370,0.20005823,94573.0,94572.0,0.06516888]
[1746448053532,0.16885823,94573.0,94572.0,0.05816888]
[1746448054637,0.20015823,94573.0,94572.0,0.05816888]
[1746448055043,0.16885823,94573.0,94572.0,0.05816888]
[1746448059499,0.13570892,94573.0,94572.0,0.05816888]
[1746448060510,0.13570892,94573.0,94572.0,0.05116888]
[1746448061765,0.09308838,94573.0,94572.0,0.05116888]
[1746448066326,0.1096679,94573.0,94572.0,0.05116888]
[1746448067083,0.09308838,94573.0,94572.0,0.05116888]
[1746448067535,0.09308838,94573.0,94572.0,0.04416888]
[1746448070004,0.10966807,94573.0,94572.0,0.04416888]
[1746448071829,0.14116807,94573.0,94572.0,0.04416888]
[1746448074612,0.14116807,94573.0,94572.0,0.03716888]
[1746448075677,0.22326202,94573.0,94572.0,0.03716888]
[1746448075825,0.12558838,94573.0,94572.0,0.03716888]
[1746448076037,0.12823209,94573.0,94572.0,0.03716888]
[1746448076814,0.13023209,94573.0,94572.0,0.03716888]
[1746448077861,0.08760946,94573.0,94572.0,0.03716888]
[1746448078422,0.42960946,94573.0,94572.0,0.03716888]
[1746448078626,0.42696575,94573.0,94572.0,0.03716888]
[1746448078808,0.44354712,94573.0,94572.0,0.03716888]
[1746448079221,0.44354712,94573.0,94572.0,0.02058725]
[1746448079422,0.08696575,94573.0,94572.0,0.02058725]
[1746448079667,0.08960953,94573.0,94572.0,0.02058725]
[1746448081214,0.25062105,94573.0,94572.0,0.02058725]
[1746448081388,0.24797727,94573.0,94572.0,0.02058725]
[1746448081717,0.24797727,94573.0,94572.0,0.01358725]
[1746448082555,0.26455887,94573.0,94572.0,0.01358725]
[1746448086771,0.24797727,94573.0,94572.0,0.01358725]
[1746448087317,0.21547727,94573.0,94572.0,0.01358725]
[1746448087731,0.21547727,94573.0,94572.0,0.02998725]
[1746448088134,0.21547727,94573.0,94572.0,0.04658725]
[1746448088821,0.21547727,94573.0,94572.0,0.03958725]
[1746448089224,0.21347727,94573.0,94572.0,0.03958725]
[1746448089422,0.21347727,94573.0,94572.0,0.02298725]
[1746448089563,0.23105755,94573.0,94572.0,0.00658725]
[1746448090315,0.22905755,94573.0,94572.0,0.00658725]
[1746448090780,0.23005755,94573.0,94572.0,0.00658725]
[1746448091785,0.23005755,94573.0,94572.0,0.0514281]
[1746448091962,0.23005755,94573.0,94572.0,0.0810139]
[1746448093779,0.01758028,94573.0,94572.0,0.0810139]
[1746448093952,0.00166366,94573.0,94572.0,0.0810139]
[1746448094152,0.0105735,94576.0,94573.0,0.0318]
[1746448094386,0.01057328,94578.0,94575.0,0.01454085]
[1746448094540,0.22203894,94578.0,94577.0,0.01454085]
[1746448094740,0.22203894,94578.0,94577.0,0.07432665]
[1746448094949,0.19599855,94578.0,94577.0,0.07432665]
[1746448095804,0.01657772,94578.0,94577.0,0.06732665]
[1746448096179,0.22804338,94578.0,94577.0,0.06732665]
[1746448096580,0.01657772,94578.0,94577.0,0.06732665]
[1746448097365,0.01657772,94578.0,94577.0,0.06932665]
[1746448097767,0.22203202,94581.0,94579.0,0.0314]
[1746448097973,0.21146119,94580.0,94579.0,0.01454085]
[1746448098535,0.21146119,94580.0,94579.0,0.04594085]
[1746448098937,0.21146119,94580.0,94579.0,0.04994085]
[1746448099795,0.22203202,94581.0,94579.0,0.04994085]
[1746448099796,0.22203286,94581.0,94580.0,0.04534085]
[1746448101256,0.22203286,94581.0,94580.0,0.04634085]
[1746448101460,0.01057283,94582.0,94580.0,0.01554085]
[1746448101662,0.21145896,94581.0,94580.0,0.01554085]
[1746448101865,0.01057283,94582.0,94580.0,0.01654085]
[1746448102069,0.22202955,94582.0,94581.0,0.04604085]
[1746448102269,0.01657715,94585.0,94582.0,0.01454085]
[1746448102492,0.23860186,94585.0,94584.0,0.04604085]
[1746448102714,0.01097318,94585.0,94584.0,0.04604085]
[1746448102911,0.01097318,94585.0,94584.0,0.06855308]
[1746448103576,0.20188897,94591.0,94585.0,0.0318]
[1746448103753,0.20188897,94591.0,94586.0,0.02951223]
[1746448103979,0.20188897,94591.0,94581.0,0.02951223]
[1746448104194,0.20188897,94591.0,94583.0,0.0319]
[1746448104370,0.21144042,94590.0,94584.0,0.03151223]
[1746448104683,0.22200051,94595.0,94587.0,0.0322]
[1746448104882,0.22200382,94593.0,94589.0,0.01454085]
[1746448105087,0.22200382,94593.0,94591.0,0.01454085]
[1746448105219,0.22200382,94593.0,94592.0,0.04674085]
[1746448105424,0.22200373,94593.0,94592.0,0.04674085]
[1746448106004,0.01057138,94595.0,94593.0,0.04634085]
[1746448106141,0.2114299,94594.0,94593.0,0.01454085]
[1746448106748,0.2114299,94594.0,94593.0,0.04514085]
[1746448107782,0.2124299,94594.0,94593.0,0.04514085]
[1746448108331,0.2134299,94594.0,94593.0,0.04514085]
[1746448109336,0.002,94594.0,94593.0,0.04514085]
[1746448109489,0.2134299,94594.0,94593.0,0.04514085]
[1746448109692,0.2134299,94594.0,94593.0,0.02994085]
[1746448110105,0.2134299,94594.0,94593.0,0.07737803]
[1746448110304,0.2134299,94594.0,94593.0,0.09257803]
[1746448110522,0.2134299,94594.0,94593.0,0.04743718]
[1746448110719,0.17082502,94594.0,94593.0,0.04743718]
[1746448111153,0.17082502,94594.0,94593.0,0.04343718]
[1746448116597,0.17082502,94594.0,94593.0,0.08987803]
[1746448118061,0.17082502,94594.0,94593.0,0.08287803]
[1746448119262,0.17082502,94594.0,94593.0,0.49077803]
[1746448120397,0.001,94595.0,94594.0,0.04664085]
[1746448120995,0.001,94595.0,94594.0,0.07611091]
[1746448121625,0.21142543,94596.0,94595.0,0.04734085]
[1746448121801,0.22799972,94597.0,94596.0,0.01454085]
[1746448122003,0.22799972,94597.0,94596.0,0.04401091]
[1746448123564,0.19486203,94597.0,94596.0,0.04401091]
[1746448123870,0.19486203,94597.0,94596.0,0.04701091]
[1746448124875,0.01057093,94599.0,94596.0,0.04701091]
[1746448125093,0.21141848,94600.0,94598.0,0.01454085]
[1746448125287,0.21141872,94599.0,94598.0,0.02254085]
[1746448125497,0.21141872,94599.0,94598.0,0.05203462]
[1746448125943,0.22198522,94601.0,94598.0,0.05203462]
[1746448126103,0.21141711,94600.0,94599.0,0.0302]
[1746448126269,0.21141711,94600.0,94599.0,0.05969377]
[1746448127073,0.16881429,94600.0,94599.0,0.05969377]
[1746448127279,0.16881429,94600.0,94599.0,0.07423462]
[1746448127520,0.16881429,94600.0,94599.0,0.07623462]
[1746448128135,0.16881429,94600.0,94599.0,0.07823462]
[1746448128348,0.16881429,94600.0,94599.0,0.06303462]
[1746448128726,0.21141649,94600.0,94599.0,0.06303462]
[1746448129372,0.22198522,94601.0,94600.0,0.01454085]
[1746448129589,0.21141205,94602.0,94601.0,0.0314]
[1746448129787,0.21141205,94602.0,94601.0,0.06089377]
[1746448130714,0.01057048,94603.0,94601.0,0.05983462]
[1746448130869,0.21140542,94605.0,94602.0,0.04403462]
[1746448131071,0.21140542,94605.0,94603.0,0.45329377]
[1746448131293,0.002,94609.0,94604.0,0.02949377]
[1746448131476,0.22396814,94609.0,94604.0,0.02949377]
[1746448131665,0.01056993,94608.0,94604.0,0.04529377]
[1746448131993,0.21140308,94606.0,94605.0,0.02949377]
[1746448132171,0.21140308,94606.0,94604.0,0.02949377]
[1746448132370,0.20140308,94606.0,94605.0,0.02249377]
[1746448132590,0.21140531,94605.0,94604.0,0.02249377]
[1746448132924,0.21140531,94605.0,94604.0,0.02950821]
[1746448133899,0.21140531,94605.0,94604.0,0.03050821]
[1746448134777,0.21140531,94605.0,94604.0,0.03150821]
[1746448136130,0.21140531,94605.0,94604.0,0.07886751]
[1746448137150,0.21140531,94605.0,94604.0,0.48676751]
[1746448138519,0.21140531,94605.0,94604.0,0.55114545]
[1746448139362,0.21140531,94605.0,94604.0,0.54414545]
[1746448141278,0.21140531,94605.0,94604.0,0.47976751]
[1746448142085,0.16880518,94605.0,94604.0,0.47976751]
[1746448142284,0.002,94609.0,94607.0,0.0162]
[1746448142463,0.21339637,94609.0,94608.0,0.03704906]
[1746448142649,0.21339637,94609.0,94608.0,0.44494906]
[1746448144328,0.002,94609.0,94608.0,0.44494906]
[1746448144528,0.002,94609.0,94608.0,0.46104906]
[1746448144918,0.21339637,94609.0,94608.0,0.46104906]
[1746448145135,0.18026288,94609.0,94608.0,0.46104906]
[1746448145347,0.18026288,94609.0,94608.0,0.44494906]
[1746448146419,0.21139637,94609.0,94608.0,0.44494906]
[1746448146638,0.21139637,94609.0,94608.0,0.43794906]
[1746448148496,0.21139637,94609.0,94608.0,0.48530836]
[1746448153088,0.01657213,94612.0,94608.0,0.48530836]
[1746448153359,0.22796185,94612.0,94610.0,0.01454085]
[1746448153563,0.21139451,94610.0,94608.0,0.4552593]
[1746448153855,0.01056959,94611.0,94608.0,0.4552593]
[1746448154057,0.21139637,94610.0,94609.0,0.06083234]
[1746448154429,0.21139637,94610.0,94609.0,0.02953234]
[1746448155676,0.21139637,94610.0,94609.0,0.04407319]
[1746448156087,0.21139414,94610.0,94609.0,0.04407319]
[1746448156967,0.21139414,94610.0,94609.0,0.09143249]
[1746448157598,0.16880008,94610.0,94609.0,0.09143249]
[1746448158036,0.16880008,94610.0,94609.0,0.49933249]
[1746448160693,0.16880008,94610.0,94609.0,0.49233249]
[1746448163213,0.16884562,94610.0,94609.0,0.49233249]
[1746448164307,0.21143968,94610.0,94609.0,0.49233249]
[1746448164652,0.22065284,94627.0,94610.0,0.01454085]
[1746448164847,0.2219615,94611.0,94610.0,0.01454085]
[1746448165351,0.21139024,94612.0,94610.0,0.01454085]
[1746448165552,0.21139191,94611.0,94610.0,0.01454085]
[1746448165823,0.21138967,94612.0,94610.0,0.01454085]
[1746448166149,0.21139414,94610.0,94609.0,0.4552593]
[1746448166386,0.24249414,94610.0,94609.0,0.4552593]
[1746448166590,0.20936365,94610.0,94609.0,0.4552593]
[1746448167823,0.20936365,94610.0,94609.0,0.4482593]
[1746448168528,0.17826365,94610.0,94609.0,0.4482593]
[1746448170242,0.19483574,94610.0,94609.0,0.4482593]
[1746448171467,0.21123574,94610.0,94609.0,0.4482593]
[1746448171625,0.22643574,94610.0,94609.0,0.4482593]
[1746448174699,0.22643574,94610.0,94609.0,0.4412593]
[1746448176669,0.20986365,94610.0,94609.0,0.4412593]
[1746448176911,0.21250616,94610.0,94609.0,0.4412593]
[1746448179783,0.22907864,94610.0,94609.0,0.4412593]
[1746448179983,0.22643613,94610.0,94609.0,0.4412593]
[1746448181817,0.22643613,94610.0,94609.0,0.4342593]
[1746448183930,0.22743613,94610.0,94609.0,0.4342593]
[1746448185394,0.22943613,94610.0,94609.0,0.4342593]
[1746448185556,0.23143613,94610.0,94609.0,0.4342593]
[1746448186302,0.22943613,94610.0,94609.0,0.4342593]
[1746448186637,0.21286365,94610.0,94609.0,0.4342593]
[1746448188131,0.21386365,94610.0,94609.0,0.4342593]
[1746448188958,0.21386365,94610.0,94609.0,0.4272593]
[1746448189593,0.23043651,94610.0,94609.0,0.4272593]
[1746448189798,0.19730037,94610.0,94609.0,0.4272593]
[1746448189996,0.19994302,94610.0,94609.0,0.4272593]
[1746448191082,0.19994302,94610.0,94609.0,0.0193593]
[1746448196096,0.19994302,94610.0,94609.0,0.0123593]
[1746448196732,0.18337016,94610.0,94609.0,0.0123593]
[1746448199714,0.19994347,94610.0,94609.0,0.0123593]
[1746448203015,0.19994347,94610.0,94609.0,0.0053593]
[1746448206609,0.18337016,94610.0,94609.0,0.0053593]
[1746448206980,0.18337035,94610.0,94609.0,0.0053593]
[1746448207794,0.21144331,94588.0,94586.0,0.06451405]
[1746448208020,0.21144554,94587.0,94586.0,0.06451405]
[1746448208216,0.21144554,94587.0,94586.0,0.09410064]
[1746448208566,0.21144554,94587.0,94586.0,0.06451405]
[1746448209182,0.21144554,94587.0,94586.0,0.09715672]
[1746448209383,0.21144554,94587.0,94586.0,0.08395959]
[1746448209685,0.21144554,94587.0,94586.0,0.08095959]
[1746448210091,0.21144554,94587.0,94586.0,0.06755959]
[1746448210270,0.21144554,94587.0,94586.0,0.06355959]
[1746448210477,0.21144554,94587.0,94586.0,0.00304554]
[1746448210807,0.21144554,94587.0,94586.0,0.00604554]
[1746448211016,0.22802147,94587.0,94586.0,0.00304554]
[1746448211232,0.1948802,94587.0,94586.0,0.00304554]
[1746448211433,0.21898601,94587.0,94586.0,0.00504554]
[1746448211633,0.21634287,94587.0,94586.0,0.00204554]
[1746448212050,0.21634287,94587.0,94586.0,0.00404554]
[1746448213079,0.21634287,94587.0,94586.0,0.00204554]
[1746448213282,0.21634287,94587.0,94586.0,0.00304554]
[1746448213486,0.21634287,94587.0,94586.0,0.00404554]
[1746448215675,0.19976694,94587.0,94586.0,0.00404554]
[1746448215894,0.20241008,94587.0,94586.0,0.00404554]
[1746448217220,0.01057328,94578.0,94575.0,0.01344554]
[1746448217440,0.22204364,94576.0,94575.0,4.821e-05]
[1746448217841,0.22204364,94576.0,94575.0,0.01654821]
[1746448217983,0.22204364,94576.0,94575.0,0.04614454]
[1746448218606,0.22204364,94576.0,94575.0,0.05014454]
[1746448218841,0.23862037,94576.0,94575.0,0.05014454]
[1746448219071,0.23862037,94576.0,94575.0,0.05314454]
[1746448219564,0.23862037,94576.0,94575.0,0.05014454]
[1746448219769,0.23862037,94576.0,94575.0,0.05414454]
[1746448220091,0.22204364,94576.0,94575.0,0.05414454]
[1746448220264,0.22204364,94576.0,94575.0,0.06944454]
[1746448221206,0.17943137,94576.0,94575.0,0.06944454]
[1746448223367,0.17943137,94576.0,94575.0,0.11699685]
[1746448224022,0.19600807,94576.0,94575.0,0.11699685]
[1746448224482,0.19600807,94576.0,94575.0,0.10999685]
[1746448225844,0.17943137,94576.0,94575.0,0.10999685]
[1746448231675,0.17943137,94576.0,94575.0,0.10044864]
[1746448232508,0.17943137,94576.0,94575.0,0.09344864]
[1746448232734,0.19600808,94576.0,94575.0,0.09344864]
[1746448235352,0.16286499,94576.0,94575.0,0.09344864]
[1746448235545,0.16286499,94576.0,94575.0,0.07814864]
[1746448236489,0.14628828,94576.0,94575.0,0.07814864]
[1746448239386,0.10367405,94576.0,94575.0,0.07814864]
[1746448239584,0.12025104,94576.0,94575.0,0.07114864]
[1746448240973,0.12025104,94576.0,94575.0,0.87114864]
[1746448246548,0.20970405,94576.0,94575.0,0.86414864]
[1746448250903,0.22628102,94576.0,94575.0,0.86414864]
[1746448253114,0.22628102,94576.0,94575.0,0.86481664]
[1746448253641,0.13318047,94576.0,94575.0,0.85781664]
[1746448253870,0.34465061,94576.0,94575.0,0.85781664]
[1746448254138,0.13318047,94576.0,94575.0,0.85781664]